bitfinex/quotes_SOLUSD_20241021
["timestamp","ask_amount","ask_price","bid_price","bid_amount"]
[1729476811659,0.85880236,169.74,169.69,20.0]
[1729476811859,0.85880236,169.74,169.7,1.47355796]
[1729476815056,0.85880236,169.74,169.69,20.0]
[1729476815263,0.85880236,169.74,169.7,1.47355796]
[1729476817079,0.85880236,169.74,169.7,7.30739447]
[1729476817377,0.85880236,169.74,169.71,21.47355796]
[1729476817557,0.85880236,169.74,169.72,1.47355796]
[1729476822178,0.85880236,169.74,169.72,23.776884]
[1729476822478,0.85880236,169.74,169.73,21.473033]
[1729476828273,0.85880236,169.74,169.73,45.249917]
[1729476828866,22.2385,169.88,169.75,20.0]
[1729476829063,22.2385,169.88,169.76,1.47295631]
[1729476829369,0.88349613,169.87,169.76,1.47295631]
[1729476830161,0.88349613,169.87,169.77,20.0]
[1729476830366,0.88349613,169.87,169.78,1.47295631]
[1729476832767,0.88349613,169.87,169.79,1.47266522]
[1729476832963,0.88349613,169.87,169.77,20.0]
[1729476833158,0.88349613,169.87,169.78,1.47270177]
[1729476836283,0.88349613,169.87,169.79,1.47259378]
[1729476836587,0.88349613,169.87,169.8,1.47259378]
[1729476836773,0.88349613,169.87,169.77,20.0]
[1729476836974,0.88349613,169.87,169.78,1.4725922]
[1729476838597,0.88349613,169.87,169.79,43.776884]
[1729476838783,0.88349613,169.87,169.8,1.4725922]
[1729476839879,0.88349613,169.87,169.81,1.4725922]
[1729476840077,0.88349613,169.87,169.76,20.0]
[1729476840078,0.88349613,169.87,169.82,1.4725922]
[1729476840287,0.88349613,169.87,169.79,20.0]
[1729476840480,0.88349613,169.87,169.8,1.47247624]
[1729476841376,0.88349613,169.87,169.81,1.47247624]
[1729476841683,0.88349613,169.87,169.78,20.0]
[1729476841883,0.88349613,169.87,169.79,1.47247577]
[1729476842477,0.88349613,169.87,169.8,1.47245262]
[1729476842678,0.88349613,169.87,169.81,1.47245262]
[1729476842885,0.88349613,169.87,169.82,1.47245262]
[1729476843187,0.88349613,169.87,169.83,1.47245262]
[1729476843383,0.88349613,169.87,169.78,20.0]
[1729476843591,0.88349613,169.87,169.79,1.47246398]
[1729476847499,0.88349613,169.87,169.81,20.0]
[1729476847674,0.88349613,169.87,169.82,1.47246398]
[1729476849791,0.88349613,169.87,169.81,20.0]
[1729476850102,0.88349613,169.87,169.82,1.47231748]
[1729476853007,0.88349613,169.87,169.83,1.47236104]
[1729476853208,0.88349613,169.87,169.82,1.47236104]
[1729476853516,0.88349613,169.87,169.81,20.0]
[1729476853680,0.88349613,169.87,169.8,23.776884]
[1729476853681,0.88349613,169.87,169.82,1.47236138]
[1729476853875,6.1576,169.86,169.83,1.4725107]
[1729476854078,6.1576,169.86,169.75,16.1014]
[1729476854280,6.1576,169.86,169.76,1.47269061]
[1729476854576,15.2,169.85,169.77,1.47269061]
[1729476854775,15.2,169.85,169.78,1.47269061]
[1729476854978,15.2,169.85,169.79,1.47269061]
[1729476855180,15.2,169.85,169.8,1.47269061]
[1729476855490,15.2,169.85,169.73,5.7722728]
[1729476855685,15.2,169.85,169.74,1.47293913]
[1729476855887,24.76041679,169.84,169.74,1.47293913]
[1729476856090,6.3416,169.83,169.74,1.47293913]
[1729476856280,6.3416,169.83,169.75,1.47293913]
[1729476856586,6.3416,169.83,169.7,6.09728681]
[1729476856791,6.3416,169.83,169.71,1.47302298]
[1729476856998,6.3416,169.83,169.72,1.47302298]
[1729476857193,6.3416,169.83,169.73,1.47302298]
[1729476857392,6.3416,169.83,169.74,1.47302298]
[1729476857699,6.3416,169.83,169.75,1.47302298]
[1729476857908,6.3416,169.83,169.76,1.47302298]
[1729476858078,6.3416,169.83,169.77,1.47302298]
[1729476858283,6.3416,169.83,169.78,1.47302298]
[1729476858591,6.3416,169.83,169.79,1.47299905]
[1729476858795,6.3416,169.83,169.73,20.0]
[1729476858996,6.3416,169.83,169.74,1.47299865]
[1729476859194,6.3416,169.83,169.75,1.47299865]
[1729476859409,6.3416,169.83,169.76,1.47299865]
[1729476859588,6.3416,169.83,169.77,1.47299865]
[1729476859790,6.3416,169.83,169.78,1.47299865]
[1729476859987,6.3416,169.83,169.79,1.47299865]
[1729476860212,6.3416,169.83,169.8,1.47299865]
[1729476860405,6.3416,169.83,169.81,1.47299865]
[1729476860607,6.3416,169.83,169.73,20.0]
[1729476860909,6.3416,169.83,169.74,1.47290058]
[1729476861096,6.3416,169.83,169.75,1.47290058]
[1729476861298,6.3416,169.83,169.76,1.47290058]
[1729476861488,6.3416,169.83,169.77,1.47290058]
[1729476861684,6.3416,169.83,169.71,20.0]
[1729476861685,6.3416,169.83,169.78,1.47290058]
[1729476861900,6.3416,169.83,169.79,1.47290058]
[1729476862093,6.3416,169.83,169.8,1.47290058]
[1729476862288,6.3416,169.83,169.71,20.0]
[1729476862498,6.3416,169.83,169.72,1.47295478]
[1729476862704,6.3416,169.83,169.73,1.47295478]
[1729476862900,6.3416,169.83,169.74,1.47295478]
[1729476863108,6.3416,169.83,169.75,1.47295478]
[1729476863421,6.3416,169.83,169.76,1.47295478]
[1729476863711,6.3416,169.83,169.71,20.0]
[1729476864015,6.3416,169.83,169.72,1.4729615]
[1729476864218,6.3416,169.83,169.73,1.4729615]
[1729476864386,6.3416,169.83,169.74,1.4729615]
[1729476864590,6.3416,169.83,169.75,1.4729615]
[1729476864792,6.3416,169.83,169.76,1.4729615]
[1729476865102,6.3416,169.83,169.77,1.4729615]
[1729476865293,6.3416,169.83,169.78,1.4729615]
[1729476865504,6.3416,169.83,169.79,1.4729615]
[1729476865808,6.3416,169.83,169.8,1.4729615]
[1729476866018,6.3416,169.83,169.81,1.4729615]
[1729476866203,6.3416,169.83,169.82,1.47287577]
[1729476866805,6.3416,169.83,169.74,1.47287577]
[1729476867016,6.3416,169.83,169.75,1.47287577]
[1729476867313,6.3416,169.83,169.76,1.47287577]
[1729476867496,6.3416,169.83,169.77,1.47287577]
[1729476867697,6.3416,169.83,169.78,1.47287577]
[1729476868007,6.3416,169.83,169.79,1.47287577]
[1729476868204,6.3416,169.83,169.8,1.47287577]
[1729476868409,6.3416,169.83,169.81,1.47287577]
[1729476868590,30.118484,169.83,169.82,1.47287577]
[1729476868793,30.118484,169.83,169.73,1.47287577]
[1729476868997,30.118484,169.83,169.74,1.47291195]
[1729476869220,30.118484,169.83,169.75,1.47291195]
[1729476869399,30.118484,169.83,169.76,1.47291195]
[1729476869708,6.3416,169.83,169.77,1.47291195]
[1729476870012,6.3416,169.83,169.78,1.47291195]
[1729476870212,6.3416,169.83,169.79,1.47291195]
[1729476870513,6.3416,169.83,169.8,1.47291195]
[1729476870712,6.3416,169.83,169.81,1.47291195]
[1729476870914,6.3416,169.83,169.82,1.47291195]
[1729476871800,6.3416,169.83,169.73,1.47291195]
[1729476872002,6.3416,169.83,169.74,1.47291195]
[1729476872301,6.3416,169.83,169.75,1.47291195]
[1729476872507,6.3416,169.83,169.76,1.47291195]
[1729476872715,6.3416,169.83,169.77,1.47291195]
[1729476873017,6.3416,169.83,169.78,1.47291195]
[1729476873214,6.3416,169.83,169.79,1.47291195]
[1729476873513,6.3416,169.83,169.8,1.47291195]
[1729476873712,6.3416,169.83,169.81,1.47291195]
[1729476873918,6.3416,169.83,169.82,1.47291195]
[1729476874105,6.3416,169.83,169.73,1.47291195]
[1729476874306,6.3416,169.83,169.74,1.47291195]
[1729476874515,6.3416,169.83,169.75,1.47291195]
[1729476874722,6.3416,169.83,169.76,1.47291195]
[1729476875018,6.3416,169.83,169.77,1.47291195]
[1729476875201,6.3416,169.83,169.78,1.47291195]
[1729476875527,6.3416,169.83,169.79,1.47291195]
[1729476875812,6.3416,169.83,169.8,1.47291195]
[1729476876018,6.3416,169.83,169.81,1.47291195]
[1729476876211,6.3416,169.83,169.82,1.47291195]
[1729476876924,6.3416,169.83,169.73,1.47291195]
[1729476877131,6.3416,169.83,169.74,1.47304312]
[1729476877330,6.3416,169.83,169.75,1.47304312]
[1729476877502,6.3416,169.83,169.76,1.47304312]
[1729476877702,6.3416,169.83,169.77,1.47304312]
[1729476877903,6.3416,169.83,169.78,1.47304312]
[1729476878107,6.3416,169.83,169.79,1.47304312]
[1729476878302,6.3416,169.83,169.8,1.47304312]
[1729476878603,6.3416,169.83,169.81,1.47304312]
[1729476878819,6.3416,169.83,169.82,1.47304312]
[1729476879000,6.3416,169.83,169.73,1.47304312]
[1729476879200,6.3416,169.83,169.74,1.47304312]
[1729476879400,6.3416,169.83,169.75,1.47304312]
[1729476879720,23.776884,169.82,169.76,1.47304312]
[1729476879922,23.776884,169.82,169.72,20.0]
[1729476879923,23.776884,169.82,169.77,1.47304312]
[1729476880114,23.776884,169.82,169.78,1.47304312]
[1729476880327,23.776884,169.82,169.79,1.47304312]
[1729476880524,0.88362404,169.81,169.8,1.47304312]
[1729476881519,0.88362404,169.81,169.72,20.0]
[1729476881827,0.88362404,169.81,169.73,1.47310997]
[1729476882013,0.88362404,169.81,169.74,1.47310997]
[1729476882330,0.88362404,169.81,169.75,1.47310997]
[1729476882507,0.88362404,169.81,169.76,1.47310997]
[1729476882707,0.88362404,169.81,169.77,1.47310997]
[1729476883009,0.88362404,169.81,169.78,1.47310997]
[1729476883233,0.88362404,169.81,169.79,1.47310997]
[1729476883408,0.88362404,169.81,169.8,1.47310997]
[1729476885123,0.88362404,169.81,169.71,6.10676981]
[1729476885327,0.88362404,169.81,169.72,21.47308987]
[1729476885630,0.88362404,169.81,169.73,1.47308987]
[1729476885825,0.88362404,169.81,169.74,1.47308987]
[1729476886033,0.88362404,169.81,169.75,1.47308987]
[1729476886328,0.88362404,169.81,169.76,1.47308987]
[1729476886511,0.88362404,169.81,169.77,1.47308987]
[1729476886718,0.88362404,169.81,169.78,1.47308987]
[1729476886902,0.88362404,169.81,169.79,1.47308987]
[1729476887106,0.88362404,169.81,169.8,1.47308987]
[1729476892251,0.88362404,169.81,169.8,1.47294644]
[1729476892542,0.88362404,169.81,169.72,20.0]
[1729476892716,0.88362404,169.81,169.73,1.47294804]
[1729476892923,0.88362404,169.81,169.74,1.47294804]
[1729476893121,0.88362404,169.81,169.75,1.47294804]
[1729476893419,0.88362404,169.81,169.76,1.47294804]
[1729476893735,0.88362404,169.81,169.77,1.47294804]
[1729476893917,0.88362404,169.81,169.74,36.542]
[1729476893918,0.88362404,169.81,169.78,1.47294804]
[1729476894121,0.88362404,169.81,169.79,1.47294804]
[1729476894333,0.88362404,169.81,169.8,1.47294804]
[1729476901657,0.88362404,169.81,169.75,20.0]
[1729476902150,0.88362404,169.81,169.76,1.47270537]
[1729476902366,0.88362404,169.81,169.77,1.47270537]
[1729476902669,0.88362404,169.81,169.78,1.47270537]
[1729476902835,0.88362404,169.81,169.75,20.0]
[1729476902836,0.88362404,169.81,169.79,1.47270537]
[1729476903032,0.88362404,169.81,169.8,1.47270537]
[1729476908636,0.88362404,169.81,169.75,20.0]
[1729476908838,0.88362404,169.81,169.76,1.47274446]
[1729476909032,0.88362404,169.81,169.77,1.47274446]
[1729476909231,0.88362404,169.81,169.78,1.47274446]
[1729476909542,0.88362404,169.81,169.79,1.47274446]
[1729476909741,0.88362404,169.81,169.8,1.47274446]
[1729476912544,0.88362404,169.81,169.8,1.47294236]
[1729476914160,0.88362404,169.81,169.71,24.7397186]
[1729476914359,0.88362404,169.81,169.72,1.47305096]
[1729476914554,0.88362404,169.81,169.73,1.47305096]
[1729476914755,0.88362404,169.81,169.74,1.47305096]
[1729476914953,0.88362404,169.81,169.75,1.47305096]
[1729476915256,0.88362404,169.81,169.76,1.47305096]
[1729476915436,0.88362404,169.81,169.77,1.47305096]
[1729476915634,0.88362404,169.81,169.78,1.47305096]
[1729476915833,0.88362404,169.81,169.79,1.47305096]
[1729476916054,0.88362404,169.81,169.8,1.47305096]
[1729476919243,0.88362404,169.81,169.71,20.0]
[1729476919449,0.88362404,169.81,169.72,1.47311066]
[1729476919755,0.88362404,169.81,169.73,1.47311066]
[1729476919955,0.88362404,169.81,169.74,1.47311066]
[1729476920262,0.88362404,169.81,169.75,1.47311066]
[1729476920452,0.88362404,169.81,169.76,1.47311066]
[1729476920770,0.88362404,169.81,169.77,1.47311066]
[1729476921071,0.88362404,169.81,169.78,1.47311066]
[1729476921269,0.88362404,169.81,169.79,1.47311066]
[1729476921463,0.88362404,169.81,169.8,1.47311066]
[1729476921653,24.66050804,169.81,169.8,1.47311066]
[1729476922654,30.64940804,169.81,169.8,1.47311066]
[1729476922869,30.64940804,169.81,169.7,6.14520654]
[1729476922870,29.766184,169.8,169.7,6.14520654]
[1729476924574,0.1,169.79,169.7,6.14520654]
[1729476925147,29.766184,169.8,169.7,6.14520654]
[1729476926166,0.1,169.79,169.7,6.14520654]
[1729476927674,29.666184,169.8,169.7,6.14520654]
[1729476927971,23.776884,169.8,169.7,6.14520654]
[1729476928675,23.776884,169.8,169.71,20.0]
[1729476929368,0.88362404,169.81,169.71,20.0]
[1729476932879,0.88362404,169.81,169.73,20.0]
[1729476933383,0.88362404,169.81,169.73,25.7722728]
[1729476933678,0.88362404,169.81,169.74,5.7722728]
[1729476933879,0.88362404,169.81,169.75,20.0]
[1729476934178,0.88362404,169.81,169.75,25.7722728]
[1729476934793,0.88362404,169.81,169.76,1.47276622]
[1729476934964,0.88362404,169.81,169.77,1.47276622]
[1729476935292,0.88362404,169.81,169.78,1.47276622]
[1729476935462,0.88362404,169.81,169.79,1.47276622]
[1729476935666,0.88362404,169.81,169.75,25.7722728]
[1729476935667,0.88362404,169.81,169.8,1.47279921]
[1729476937285,0.88362404,169.81,169.8,1.47282472]
[1729476939671,53.25470804,169.81,169.8,1.47282472]
[1729476939984,23.776884,169.79,169.71,6.1446697]
[1729476941292,0.88381189,169.78,169.71,6.1446697]
[1729476944377,23.776884,169.77,169.71,6.1446697]
[1729476945797,23.776884,169.77,169.65,20.0]
[1729476949591,23.776884,169.77,169.65,25.7722728]
[1729476949792,0.88381189,169.78,169.67,20.0]
[1729476949986,28.5944,169.81,169.67,20.0]
[1729476951092,23.776884,169.8,169.67,20.0]
[1729476951981,23.776884,169.8,169.68,1.47332305]
[1729476952181,23.776884,169.8,169.69,1.47332305]
[1729476952372,0.88390826,169.79,169.7,1.47332305]
[1729476952686,0.88390826,169.79,169.71,1.47332305]
[1729476952880,0.88390826,169.79,169.72,1.47332305]
[1729476953083,0.88390826,169.79,169.73,1.47332305]
[1729476953294,0.88390826,169.79,169.74,1.47332305]
[1729476953596,0.88390826,169.79,169.75,1.47332305]
[1729476953889,0.88390826,169.79,169.76,1.47332305]
[1729476954088,0.88390826,169.79,169.72,20.0]
[1729476954089,0.88390826,169.79,169.77,1.47332305]
[1729476954269,0.88390826,169.79,169.78,1.47332305]
[1729476958986,0.88390826,169.79,169.78,1.47300606]
[1729476960975,0.88390826,169.79,169.78,17.01670606]
[1729476961177,15.4838,169.89,169.79,20.0]
[1729476961502,21.54232392,169.93,169.81,20.0]
[1729476961685,21.54232392,169.93,169.82,1.47260331]
[1729476961884,21.54232392,169.93,169.83,1.47260331]
[1729476962200,21.54232392,169.93,169.84,1.47260331]
[1729476962407,21.54232392,169.93,169.85,1.47260331]
[1729476962587,21.54232392,169.93,169.86,1.47260331]
[1729476962897,21.54232392,169.93,169.87,1.47260331]
[1729476962898,0.88316937,169.92,169.87,1.47260331]
[1729476963196,0.88316937,169.92,169.88,1.47260331]
[1729476963402,0.88316937,169.92,169.89,1.47260331]
[1729476963583,0.88316937,169.92,169.9,1.47260331]
[1729476963785,0.88316937,169.92,169.91,1.47260331]
[1729476964002,0.88316937,169.92,169.82,1.47260331]
[1729476964198,0.88316937,169.92,169.83,1.47260331]
[1729476964402,0.88316937,169.92,169.84,1.47260331]
[1729476964610,0.88316937,169.92,169.85,1.47260331]
[1729476964905,0.88316937,169.92,169.86,1.47260331]
[1729476965205,0.88316937,169.92,169.87,1.47260331]
[1729476965389,0.88316937,169.92,169.88,1.47260331]
[1729476965595,0.88316937,169.92,169.89,1.47260331]
[1729476965791,0.88316937,169.92,169.9,1.47260331]
[1729476966102,0.88316937,169.92,169.83,20.0]
[1729476966287,0.88316937,169.92,169.84,1.4722125]
[1729476966488,0.88316937,169.92,169.85,1.4722125]
[1729476966701,0.88316937,169.92,169.86,1.4722125]
[1729476966901,0.88316937,169.92,169.87,1.4722125]
[1729476967101,0.88316937,169.92,169.88,1.4722125]
[1729476967282,0.88316937,169.92,169.89,1.4722125]
[1729476967484,0.88316937,169.92,169.9,1.4722125]
[1729476967705,0.88316937,169.92,169.8,20.0]
[1729476968001,16.5327,169.91,169.81,1.4722902]
[1729476968191,0.88316937,169.92,169.82,1.4722902]
[1729476968386,0.88316937,169.92,169.83,1.47232538]
[1729476968607,0.88316937,169.92,169.84,1.47232538]
[1729476968792,0.88316937,169.92,169.85,1.47232538]
[1729476969109,0.88316937,169.92,169.86,1.47232538]
[1729476969294,0.88316937,169.92,169.87,1.47232538]
[1729476969607,0.88316937,169.92,169.88,1.47232538]
[1729476969811,0.88316937,169.92,169.89,1.47232538]
[1729476969990,0.88316937,169.92,169.9,1.47232538]
[1729476970304,0.88316937,169.92,169.85,22.10992538]
[1729476970604,0.88316937,169.92,169.8,23.776884]
[1729476970922,0.88316937,169.92,169.79,12.0746728]
[1729476971782,0.88316937,169.92,169.8,7.40247432]
[1729476972679,0.88316937,169.92,169.81,20.0]
[1729476980617,0.88316937,169.92,169.83,20.0]
[1729476982298,0.88316937,169.92,169.84,1.47222899]
[1729476983129,0.88316937,169.92,169.83,20.0]
[1729476983415,0.88316937,169.92,169.84,1.47223246]
[1729476987303,0.88316937,169.92,169.86,20.0]
[1729476987512,0.88316937,169.92,169.87,1.47205348]
[1729476991423,0.88316937,169.92,169.86,20.0]
[1729476991598,0.88316937,169.92,169.87,1.47202629]
[1729476992504,6.584,169.99,169.88,43.876884]
[1729476992820,6.584,169.99,169.91,20.0]
[1729476993135,6.584,169.99,169.92,1.47202629]
[1729476994010,0.88269156,169.98,169.92,1.47202629]
[1729476995526,0.88269156,169.98,169.91,20.0]
[1729476995711,0.88269156,169.98,169.92,1.47162917]
[1729476999508,0.88269156,169.98,169.91,20.0]
[1729476999719,0.88269156,169.98,169.92,1.47164875]
[1729476999911,0.88269156,169.98,169.91,20.0]
[1729477000228,0.88269156,169.98,169.92,1.4716491]
[1729477001542,0.88269156,169.98,169.91,20.0]
[1729477001837,0.88269156,169.98,169.92,1.4716288]
[1729477003546,0.88269156,169.98,169.93,1.47162197]
[1729477003914,0.88269156,169.98,169.91,20.0]
[1729477004123,0.88269156,169.98,169.92,1.47162914]
[1729477009739,16.3489886,170.0,169.94,56.173284]
[1729477009945,16.3489886,170.0,169.99,20.0]
[1729477010144,16.3489886,170.0,169.99,45.248078]
[1729477010443,16.3489886,170.0,169.99,51.59897849]
[1729477013932,16.0489886,170.0,169.99,51.59897849]
[1729477014967,16.0489886,170.0,169.99,27.82167988]
[1729477015442,16.0489886,170.0,169.99,51.59856388]
[1729477015826,16.0489886,170.0,169.99,51.79856388]
[1729477016242,16.0489886,170.0,169.99,56.63757828]
[1729477016641,16.0489886,170.0,169.99,56.53757828]
[1729477017041,16.0489886,170.0,169.99,56.63757828]
[1729477017246,16.0489886,170.0,169.99,56.53757828]
[1729477017436,16.0489886,170.0,169.99,56.63757828]
[1729477017651,16.0489886,170.0,169.99,56.53757828]
[1729477017831,16.0489886,170.0,169.99,56.63757828]
[1729477018225,16.0489886,170.0,169.99,56.53757828]
[1729477018442,16.0489886,170.0,169.99,7.82167988]
[1729477019864,16.0489886,170.0,169.99,1.47077939]
[1729477020068,16.0489886,170.0,169.95,6.20216985]
[1729477020069,16.0489886,170.0,169.96,1.47077939]
[1729477021159,16.0489886,170.0,169.96,23.776884]
[1729477021351,16.0489886,170.0,169.97,1.47094216]
[1729477021957,0.8824421,169.99,169.98,1.47094216]
[1729477022261,0.8824421,169.99,169.87,0.1]
[1729477022432,0.8824421,169.99,169.88,7.6108399]
[1729477022634,0.8824421,169.99,169.89,1.47150802]
[1729477023137,23.776884,169.98,169.9,1.47150802]
[1729477023331,23.776884,169.98,169.91,1.47150802]
[1729477023532,21.3372,169.97,169.84,13.54307092]
[1729477023743,23.776884,169.96,169.85,1.47192053]
[1729477024260,23.876884,169.9,169.85,1.47192053]
[1729477024472,29.663384,169.88,169.69,6.6125]
[1729477024648,23.776884,169.88,169.72,6.24525413]
[1729477024843,15.0057,169.89,169.75,0.1]
[1729477025050,15.0057,169.89,169.76,8.87499624]
[1729477025370,15.0057,169.89,169.77,1.47252192]
[1729477026848,15.0057,169.89,169.77,21.47252192]
[1729477027030,15.0057,169.89,169.78,1.47252192]
[1729477027232,0.88321654,169.88,169.78,1.47252192]
[1729477028966,0.88321654,169.88,169.79,1.47245673]
[1729477029162,0.88321654,169.88,169.8,1.47245673]
[1729477029457,0.88321654,169.88,169.81,1.47245673]
[1729477029658,0.88321654,169.88,169.82,1.47245673]
[1729477029845,0.88321654,169.88,169.82,8.87493105]
[1729477030049,0.88321654,169.88,169.83,21.47245673]
[1729477030258,0.88321654,169.88,169.84,1.47245673]
[1729477031436,6.3315,169.91,169.84,1.47245673]
[1729477032758,6.3315,169.91,169.85,1.47245673]
[1729477033135,6.3315,169.91,169.86,1.47245673]
[1729477033359,6.3315,169.91,169.81,23.776884]
[1729477033560,6.3315,169.91,169.82,21.47225145]
[1729477033770,6.3315,169.91,169.83,1.47225145]
[1729477034465,6.3315,169.91,169.82,20.0]
[1729477034466,6.3315,169.91,169.84,1.47220147]
[1729477034663,6.3315,169.91,169.82,20.1]
[1729477034852,15.6027,169.94,169.84,20.0]
[1729477035050,15.6027,169.94,169.85,1.47216552]
[1729477035567,15.6027,169.94,169.85,8.87463984]
[1729477035871,15.6027,169.94,169.86,21.47216552]
[1729477036061,15.3028,169.99,169.88,20.0]
[1729477036260,15.3028,169.99,169.89,1.47216552]
[1729477036859,15.3028,169.99,169.88,20.0]
[1729477037061,15.3028,169.99,169.89,1.4717765]
[1729477037262,23.776884,169.98,169.89,1.4717765]
[1729477037440,23.776884,169.98,169.9,1.4717765]
[1729477037764,23.776884,169.98,169.84,20.0]
[1729477037961,23.776884,169.98,169.85,1.4719602]
[1729477038654,23.776884,169.95,169.86,1.4719602]
[1729477038858,23.776884,169.95,169.87,1.4719602]
[1729477039058,23.776884,169.95,169.88,1.4719602]
[1729477039246,23.776884,169.95,169.79,6.35090049]
[1729477039247,29.661684,169.93,169.79,6.35090049]
[1729477039441,29.661684,169.93,169.8,1.47221827]
[1729477039647,29.661684,169.93,169.81,1.47221827]
[1729477039980,29.662384,169.91,169.82,1.47221827]
[1729477040266,29.662384,169.91,169.83,1.47221827]
[1729477040454,29.662384,169.91,169.84,1.47221827]
[1729477040651,29.662384,169.91,169.78,1.4725081]
[1729477040870,29.662384,169.91,169.79,1.47259059]
[1729477041176,29.662384,169.91,169.8,1.47259059]
[1729477041477,29.662384,169.91,169.81,1.47259059]
[1729477041663,29.662384,169.91,169.82,1.47259059]
[1729477041972,15.6419,169.88,169.75,6.35090049]
[1729477042171,23.776884,169.87,169.76,1.47264165]
[1729477042562,6.1752,169.86,169.76,1.47264165]
[1729477042753,6.1752,169.86,169.77,1.47264165]
[1729477042951,6.1752,169.86,169.78,1.47264165]
[1729477043255,23.776884,169.85,169.79,1.47264165]
[1729477043455,23.776884,169.85,169.8,1.47264165]
[1729477043663,23.776884,169.85,169.74,6.14339204]
[1729477043953,23.776884,169.85,169.75,1.4727965]
[1729477044349,23.776884,169.85,169.76,1.47293299]
[1729477044555,23.776884,169.83,169.76,1.47293299]
[1729477044752,23.776884,169.83,169.71,6.35090049]
[1729477044956,23.776884,169.83,169.72,1.47291959]
[1729477045658,0.88349992,169.84,169.72,1.47291959]
[1729477045851,0.88349992,169.84,169.72,8.87539391]
[1729477046057,0.88349992,169.84,169.73,21.47291959]
[1729477046357,0.88349992,169.84,169.74,1.4728277]
[1729477048463,0.88349992,169.84,169.75,1.47285471]
[1729477048765,0.88349992,169.84,169.76,1.47285471]
[1729477048965,0.88349992,169.84,169.77,1.47285471]
[1729477049182,0.88349992,169.84,169.78,1.47285471]
[1729477049361,0.88349992,169.84,169.72,20.0]
[1729477049679,0.88349992,169.84,169.73,1.47284257]
[1729477050372,0.38349992,169.84,169.73,1.47284257]
[1729477052864,0.38349992,169.84,169.75,20.0]
[1729477053068,0.38349992,169.84,169.76,1.47284257]
[1729477054087,0.38349992,169.84,169.77,1.47284257]
[1729477054268,0.38349992,169.84,169.78,1.47284257]
[1729477054472,0.38349992,169.84,169.73,23.776884]
[1729477054701,0.38349992,169.84,169.74,28.87518798]
[1729477054979,0.38349992,169.84,169.75,1.47271366]
[1729477056685,0.38349992,169.84,169.74,33.75337481]
[1729477056686,0.38349992,169.84,169.76,1.47263698]
[1729477056982,0.38349992,169.84,169.77,1.47263698]
[1729477057184,0.38349992,169.84,169.78,1.47263698]
[1729477057389,0.38349992,169.84,169.79,1.47263698]
[1729477057579,0.38349992,169.84,169.74,33.75337481]
[1729477057779,0.38349992,169.84,169.75,1.47266795]
[1729477057970,0.38349992,169.84,169.76,1.47267216]
[1729477058172,0.38349992,169.84,169.77,1.47267216]
[1729477058366,0.38349992,169.84,169.78,1.47267216]
[1729477058569,0.38349992,169.84,169.79,1.47267216]
[1729477058781,0.38349992,169.84,169.74,26.35090049]
[1729477059090,0.38349992,169.84,169.75,1.47272401]
[1729477061489,0.38349992,169.84,169.76,20.0]
[1729477061662,0.38349992,169.84,169.77,1.47272401]
[1729477066398,0.38349992,169.84,169.77,0.97272401]
[1729477066976,0.38349992,169.84,169.75,20.0]
[1729477069198,0.38349992,169.84,169.74,6.35090049]
[1729477069492,15.1614,169.83,169.74,6.35090049]
[1729477069872,6.4669,169.81,169.71,6.14282578]
[1729477070080,23.776884,169.8,169.67,6.2881]
[1729477070295,23.776884,169.8,169.67,12.43350479]
[1729477070498,23.776884,169.8,169.67,12.49630528]
[1729477071098,15.771,169.79,169.67,12.49630528]
[1729477071301,23.776884,169.78,169.68,20.0]
[1729477071601,23.776884,169.78,169.67,12.49630528]
[1729477071777,23.776884,169.78,169.67,6.14540479]
[1729477072101,6.2504,169.77,169.67,6.14540479]
[1729477072283,39.547884,169.76,169.67,6.14540479]
[1729477072599,39.547884,169.76,169.62,6.35090049]
[1729477072794,39.547884,169.76,169.64,6.14716523]
[1729477072992,0.88392188,169.75,169.65,20.0]
[1729477078388,0.88392188,169.75,169.66,1.47328537]
[1729477078610,0.88392188,169.75,169.67,1.47328537]
[1729477078791,0.88392188,169.75,169.68,1.47328537]
[1729477078996,0.88392188,169.75,169.69,1.4732791]
[1729477079203,0.88392188,169.75,169.7,1.4732791]
[1729477079391,0.88392188,169.75,169.71,1.4732791]
[1729477079588,0.88392188,169.75,169.72,1.4732791]
[1729477079788,0.88392188,169.75,169.73,1.4732791]
[1729477080039,0.88392188,169.75,169.74,1.4732791]
[1729477080518,0.88392188,169.75,169.66,1.4732791]
[1729477080702,0.88392188,169.75,169.67,1.4732791]
[1729477080907,0.88392188,169.75,169.68,1.4732791]
[1729477081100,0.88392188,169.75,169.69,1.4732791]